[Event "CCT Julius Baer-D3 2024"]
[Site "Online"]
[Date "2024.09.29"]
[Round "54"]
[White "Bharath Subramaniyam H"]
[Black "Niemann, Hans Moke"]
[Result "0-1"]
[Annotator "TA"]
[ECO "B88"]
[WhiteElo "2561"]
[BlackElo "2733"]
[PlyCount "150"]
[EventDate "2024.09.25"]
[EventType "swiss"]
[EventCountry "NET"]
[SourceTitle "playchess.com"]
[Source "ChessBase"]
[SourceQuality "1"]
[TimeControl "600+2"]

{[%evp 59,150,0,0,0,14,17,7,12,12,10,18,2,83,78,78,0,0,0,0,0,0,0,0,-50,-52,-54,-54,-90,-53,-37,-37,-37,-25,-25,-23,-77,-77,-80,-19,-19,-19,-19,-8,-8,-8,-8,-8,-8,-8,-22,-8,-8,-21,-1302,-1268,-29958,-29951,-29961,-29957,-4614,-11370,-29968,-29969,-29968,-29971,-29978,-29979,-29979,-29980,-29979,-29980,-29980,-29981,-29983,-29984,-29984,-29984,-29984,-29985,-29985,-29986,-29985,-29983,-29983,-29981,-29981,-29982,-29982,-29983,-29985,-1644,-29986,-29987]} 1. e4 {[%emt 0:00:03]} c5 {[%emt 0:00:05]} 2. Nf3 {[%emt 0:00:01]} d6 {[%emt 0:00:00]} 3. Nc3 {[%emt 0:00:03]} a6 {[%emt 0:00:02]} 4. d4 {[%emt 0:00:03]} cxd4 {[%emt 0:00:01]} 5. Nxd4 {[%emt 0:00:00]} Nf6 {[%emt 0:00:01]} 6. Bc4 {[%emt 0:00:01]} e6 {[%emt 0:00:04]} 7. a4 {[%emt 0:00:02]} Nc6 {[%emt 0:00:06]} 8. Be3 {[%emt 0:00:08]} Bd7 {[%emt 0:00:04]} 9. O-O {[%emt 0:00:06]} Be7 {[%emt 0:00:04]} 10. Qe2 {[%emt 0:00:11]} O-O {[%emt 0:00:05]} 11. Nxc6 {[%emt 0:00:17]} Bxc6 {[%emt 0:00:01]} 12. a5 {[%emt 0:00:05]} Rc8 {[%emt 0:00:09]} 13. Bb6 {[%emt 0:00:03]} Qe8 {[%emt 0:00:02]} 14. Rfd1 {[%emt 0:00:02]} Nd7 {[%emt 0:00:01]} 15. Bd4 {[%emt 0:00:02]} Qd8 {[%emt 0:00:09]} 16. Bb3 {[%emt 0:00:05]} Qc7 {[%emt 0:00:02]} 17. Qe3 {[%emt 0:00:40]} Rfd8 {[%emt 0:00:12]} 18. Na4 {[%emt 0:00:20]} Bf6 {[%emt 0:00:01]} 19. Bxf6 {[%emt 0:00:25]} Nxf6 {[%emt 0:00:01]} 20. Nb6 {[%emt 0:00:01]} Rb8 {[%emt 0:00:03]} 21. f3 {[%emt 0:00:04]} Nd7 {[%emt 0:00:09]} 22. Nxd7 {[%emt 0:00:19]} Rxd7 {[%emt 0:00:00]} 23. c3 {[%emt 0:00:20]} Rbd8 {[%emt 0:00:08]} 24. Rd2 {[%emt 0:00:15]} h6 {[%emt 0:00:10]} 25. Bc2 {[%emt 0:00:15]} d5 {[%emt 0:00:17]} 26. e5 {[%emt 0:00:08]} Bb5 {[%emt 0:00:02]} 27. Rd4 {[%emt 0:00:03]} Rc8 {[%emt 0:00:16]} 28. f4 {[%emt 0:00:18]} Re7 {[%emt 0:00:21]} 29. h3 {[%emt 0:00:22]} b6 {[%emt 0:00:05]} 30. axb6 {[%emt 0:00:09]} Qxb6 {[%emt 0:00:01]} 31. Qf2 {[%emt 0:00:10]} Rb8 {[%emt 0:00:19]} 32. f5 {[%emt 0:00:45]} exf5 {[%emt 0:00:01]} 33. Qxf5 {[%emt 0:00:00]} g6 {[%emt 0:00:01]} 34. Qf4 {[%emt 0:00:03]} Rbe8 {[%emt 0:00:11]} 35. Re1 {[%emt 0:00:10]} (35. Qxh6 Rxe5 36. Kh2 Re2 $15) 35... Bd7 {[%emt 0:00:40]} (35... Re6 $11 {keeps the balance.}) 36. Kh2 $16 {[%emt 0:00:52]} (36. Qxh6 $6 Rxe5 37. Rxe5 Rxe5 $11) 36... Qb8 {[%emt 0:00:32]} (36... Qxb2 $2 {loses.} 37. Qxh6 (37. Re2 Qxc3 38. Rxd5 Be6 $11) 37... f5 38. exf6 (38. Qxg6+ $2 {too greedy.} Rg7 $19) 38... Qb8+ 39. Rf4 $18) 37. Qxh6 {[%emt 0:00:59]} (37. Rxd5 $16 Qxb2 38. Rc1) 37... Rxe5 $11 {[%emt 0:00:02]} 38. Rxe5 {[%emt 0:00:02]} Qxe5+ {[%emt 0:00:01]} 39. Qf4 {[%emt 0:00:04]} Qxf4+ {[%emt 0:00:13]} 40. Rxf4 {[%emt 0:00:00]} Re2 {[%emt 0:00:00]} 41. Bd3 {[%emt 0:00:13]} (41. Bb3 $1 $11) 41... Rxb2 $15 {[%emt 0:00:02]} 42. Bxa6 {[%emt 0:00:00]} Rb3 {[%emt 0:00:28]} 43. c4 {[%emt 0:01:24]} Rb6 {[%emt 0:00:02]} 44. Bb5 $1 {[%emt 0:00:19]} Bxb5 {[%emt 0:00:01]} 45. cxb5 {[%emt 0:00:00]} Rxb5 {[%emt 0:00:00]} 46. h4 {[%emt 0:00:03]} Rc5 {[%emt 0:00:03]} 47. Rf1 {[%emt 0:00:29]} (47. Rf3 $11 {remains equal.}) 47... d4 $17 {[%emt 0:00:17]} 48. Kg3 {[%emt 0:00:07]} Re5 {[%emt 0:00:05]} (48... f5 $17) 49. Rd1 $11 {[%emt 0:00:07]} Re4 {[%emt 0:00:01]} 50. Kf3 $1 {[%emt 0:00:05]} f5 {[%emt 0:00:01]} 51. g3 {[%emt 0:00:02]} Kf7 {[%emt 0:00:02]} 52. Ra1 {[%emt 0:00:03]} Kf6 {[%emt 0:00:11]} 53. Ra6+ {[%emt 0:00:01]} Re6 {[%emt 0:00:01]} 54. Ra3 {[%emt 0:00:09]} Ke5 {[%emt 0:00:04]} 55. Ra5+ {[%emt 0:00:09]} Kd6 {[%emt 0:00:01]} 56. h5 $2 {[%emt 0:00:20][%mdl 8192]} (56. Kf2 $11) 56... gxh5 $19 {[%emt 0:00:04]} 57. Rxf5 {[%emt 0:00:00] [#]} d3 $1 {[%emt 0:00:15]} 58. Rf8 {[%emt 0:00:10]} Kc5 {[%emt 0:00:06]} 59. Rd8 {[%emt 0:00:13]} Kc4 {[%emt 0:00:01]} 60. Kg2 {[%emt 0:00:03]} Kc3 {[%emt 0:00:07]} 61. Kf2 {[%emt 0:00:06]} Re5 {[%emt 0:00:11]} 62. Ra8 {[%emt 0:00:02]} d2 {[%emt 0:00:04]} 63. Rc8+ {[%emt 0:00:03]} Kd3 {[%emt 0:00:02]} 64. Rd8+ {[%emt 0:00:00]} Kc2 {[%emt 0:00:02]} 65. Rc8+ {[%emt 0:00:01]} Kd1 {[%emt 0:00:00]} 66. Ra8 {[%emt 0:00:01]} Rf5+ {[%emt 0:00:02]} 67. Kg2 {[%emt 0:00:00]} Ke2 {[%emt 0:00:03]} 68. Re8+ {[%emt 0:00:01]} Kd3 {[%emt 0:00:01]} 69. Rd8+ {[%emt 0:00:00]} Ke3 {[%emt 0:00:01]} 70. Rd7 {[%emt 0:00:06]} Rf2+ {[%emt 0:00:04]} 71. Kh3 {[%emt 0:00:03]} Ke2 {[%emt 0:00:04]} 72. Re7+ {[%emt 0:00:04]} Kf1 {[%emt 0:00:01]} 73. Rd7 {[%emt 0:00:01]} Ke1 {[%emt 0:00:01]} 74. Kh4 {[%emt 0:00:05]} Rh2+ {[%emt 0:00:01]} 75. Kg5 {[%emt 0:00:00]} d1=Q {[%emt 0:00:00]} 0-1

[Event "CCT Julius Baer-D3 2024"]
[Site "Online"]
[Date "2024.09.29"]
[Round "54"]
[White "Makarian, Rudik"]
[Black "Sindarov, Javokhir"]
[Result "1/2-1/2"]
[Annotator "TA"]
[ECO "A38"]
[WhiteElo "2550"]
[BlackElo "2677"]
[PlyCount "82"]
[EventDate "2024.09.25"]
[EventType "swiss"]
[EventCountry "NET"]
[SourceTitle "playchess.com"]
[Source "ChessBase"]
[SourceQuality "1"]
[TimeControl "600+2"]

{[%evp 12,82,36,38,60,49,46,59,69,61,91,65,108,57,58,52,63,52,61,54,65,51,73,-12,0,0,13,13,31,25,34,21,26,14,38,-13,-13,0,0,0,0,0,0,0,0,0,0,0,0,0,0,0,0,0,0,0,0,0,0,0,0,0,0,0,0,-62,0,0,0,0,0,0,0]} 1. Nf3 {[%emt 0:00:05]} Nf6 {[%emt 0:00:05]} 2. c4 {[%emt 0:00:02]} g6 {[%emt 0:00:08]} 3. Nc3 {[%emt 0:00:02]} c5 {[%emt 0:00:06]} 4. g3 {[%emt 0:00:16]} Bg7 {[%emt 0:00:05]} 5. Bg2 {[%emt 0:00:01]} Nc6 {[%emt 0:00:01]} 6. d4 {[%emt 0:00:09]} cxd4 {[%emt 0:00:00]} 7. Nxd4 {[%emt 0:00:00]} h5 {[%emt 0:00:00]} 8. h3 {[%emt 0:00:04] Beste} Nxd4 {[%emt 0:00:03] OK} 9. Qxd4 {[%emt 0:00:00]} d6 {[%emt 0:00:00] OK. Wit staat iets beter.} 10. b3 {[%emt 0:01:23]} O-O {[%emt 0:01:17][%cal Of6e4] [#] ...Ne4! is de sterke dreiging. OK} 11. Bb2 {[%emt 0:00:16] Wit heeft actievere stukken. De zwarte torens stukken zijn slecht gepositioneerd. OK} Be6 {[%emt 0:00:09] Onnauwkeurig} 12. O-O {[%emt 0:00:55] Fout (0.5)} (12. Bxb7 $16 Rb8 13. Bg2 (13. Qxa7 $2 {vergaat.} Qd7 $19)) 12... Nd5 {[%emt 0:01:18]} 13. Qd2 {[%emt 0:00:15] OK} Nxc3 {[%emt 0:00:01] OK} 14. Bxc3 {[%emt 0:00:01]} Bxc3 {[%emt 0:00:00]} 15. Qxc3 {[%emt 0:00:00]} Qc8 {[%emt 0:00:01][%cal Re6h3]} 16. Kh2 {[%emt 0:00:18] OK} Rb8 {[%emt 0:00:03][%cal Ba8b8,Bb8b5,Bb5a5][%mdl 32] EV=28.93. OK} {Beter is} 17. Rac1 {[%emt 0:00:13] Fout (0.8)} (17. Qd3 $16) 17... b5 $11 {[%emt 0:00:34] Beste (Gemakkelijk)} 18. cxb5 {[%emt 0:00:22] OK} Qxc3 {[%emt 0:00:01]} 19. Rxc3 {[%emt 0:00:01] [#] Sterke dreiging met a4.} Rxb5 {[%emt 0:00:00] Beste (Gemakkelijk)} 20. Rfc1 {[%emt 0:00:07] OK} Rfb8 {[%emt 0:00:40] OK} 21. Rc7 {[%emt 0:00:50][%csl LRa7,LRe7]} Ra5 {[%emt 0:00:02]} 22. R1c2 {[%emt 0:00:01] OK} Kf8 {[%emt 0:00:00] OK} {Wit zou moeten spelen} 23. f4 {[%emt 0:00:57] Fout (0.5)} (23. Bb7 $14) 23... Rbb5 {[%emt 0:00:08] OK} 24. Bf3 {[%emt 0:00:30] OK} Rc5 {[%emt 0:00:03]} 25. R7xc5 {[%emt 0:00:09] OK} Rxc5 {[%emt 0:00:02]} 26. Rxc5 {[%emt 0:00:34]} dxc5 {[%emt 0:00:00][%mdl 4096] Eindspel. KB-KB} 27. e4 {[%emt 0:00:02] OK} c4 {[%emt 0:00:31] Beste (Gemakkelijk)} 28. bxc4 {[%emt 0:00:02] OK} Bxc4 {[%emt 0:00:00]} 29. a3 {[%emt 0:00:01] OK} e5 {[%emt 0:00:09] OK} 30. h4 {[%emt 0:00:18] OK} Ke7 {[%emt 0:00:02] OK} 31. Kg2 {[%emt 0:00:15] OK} Kd6 {[%emt 0:00:19]} 32. Kf2 {[%emt 0:00:02] OK} Bb5 {[%emt 0:00:16]} 33. Ke3 {[%emt 0:00:13] OK} Bd7 {[%emt 0:00:11]} 34. Bd1 {[%emt 0:00:51]} Be6 {[%emt 0:00:07]} 35. Be2 {[%emt 0:00:03]} Bb3 {[%emt 0:00:27] OK} 36. f5 {[%emt 0:00:16]} Ba4 {[%emt 0:00:08] OK} 37. Bc4 {[%emt 0:00:07] OK} Ke7 {[%emt 0:00:03] OK} {White should pursue} 38. Bd5 {[%emt 0:00:41] Fout (0.6)} (38. fxg6 $11 fxg6 39. Bd5) {Black should consider} 38... Bd7 {[%emt 0:00:09] Fout (0.6)} (38... gxf5 $1 $15 39. exf5 Bc2) 39. fxg6 {[%emt 0:00:03] OK. De stelling is in evenwicht.} fxg6 {[%emt 0:00:00]} 40. Kd3 {[%emt 0:00:03]} Bb5+ {[%emt 0:00:02] OK} 41. Kc3 {[%emt 0:00:01]} a5 {[%emt 0:00:02] Blunder waarde: Wit=0.14 (erg precies) /Zwart=0.06 (foutloos) .  Fout:        	Wit=4      	Zwart=1      Onnauwkeurig:    	---       	Zwart=1      OK:         	Wit=17     	Zwart=14     Beste:        	Wit=1      	Zwart=3} 1/2-1/2